Cogmind - Beta 16 @@@ ROGUE MODE // 2025.10.22 @ 22:21:25 Player: Visionary Result: Destroyed by D-53 Grenadier with Mini Grenade Launcher Performance ------------- Evolutions (0) 0 Regions Visited (2) 400 Robots Destroyed (23) 115 Value Destroyed (520) 520 Prototype IDs (0) 0 Alien Tech Used (0) 0 Bonus (0) 0 TOTAL SCORE: 1035 Bonus ------- None Cogmind --------- Core Integrity 0/250 Matter 240/300 Energy 82/100 System Corruption 0% Temperature Cool (0) Movement Walking (260) Ox2 Location -10/Mines Parts ------- > --- POWER (1) -------- (None) > --- PROPULSION (2) --- Aluminum Leg > --- UTILITY (2) ------ Large Storage Unit Terrain Scanner > --- WEAPON (2) ------- Grenade Launcher Grenade Launcher > --- INVENTORY (15) --- Light Ion Engine Aluminum Leg Aluminum Leg Aluminum Leg Aluminum Leg Medium Matter Pod (100) Medium Matter Pod (100) Visual Processing Unit Small Laser Assault Rifle Datajack Peak State ------------ > --- POWER ------------ Ion Engine > --- PROPULSION ------- Aluminum Leg Aluminum Leg > --- UTILITY ---------- High-capacity Storage Unit Light Armor Plating > --- WEAPON ----------- Assault Rifle Grenade Launcher > --- INVENTORY -------- Light Ion Engine Aluminum Leg Aluminum Leg Visual Processing Unit Small Laser Assault Rifle Grenade Launcher Grenade Launcher Grenade Launcher [Rating: 8] Favorites ----------- Power Ion Engine Engine Ion Engine Propulsion Aluminum Leg Leg Aluminum Leg Utility High-capacity Storage Unit Device Terrain Scanner Storage High-capacity Storage Unit Protection Light Armor Plating Weapon Assault Rifle Ballistic Gun Assault Rifle Launcher Grenade Launcher Build | -11 -10 -10 ------- Run | Yrd Mat Min Slots Evolved . | . . . Power . | . . . Propulsion . | . . . Utility . | . . . Weapon . | . . . Parts Attached 15 | 5 8 2 Power 1 | . 1 . Engine 1 | . 1 . Core . | . . . Reactor . | . . . Propulsion 2 | 2 . . Treads . | . . . Leg 2 | 2 . . Wheel . | . . . Hover . | . . . Flight . | . . . Utility 6 | 1 5 . Device 1 | . 1 . Storage 4 | 1 3 . Processor . | . . . Hackware . | . . . Protection 1 | . 1 . Artifact . | . . . Weapon 6 | 2 2 2 Energy Gun . | . . . Energy Cannon . | . . . Ballistic Gun 2 | 2 . . Ballistic Cannon . | . . . Launcher 4 | . 2 2 Special Weapon . | . . . Impact Weapon . | . . . Slashing Weapon . | . . . Piercing Weapon . | . . . Special Melee Weapon . | . . . Unidentified Prototypes . | . . . Parts Lost 5 | . 1 4 Power 1 | . . 1 Propulsion 1 | . . 1 Utility 1 | . 1 . Weapon 2 | . . 2 Highest Loss Streak 4 | . 1 4 To Critical Strikes . | . . . Average Backups 10 | 3 10 13 Power 1 | 1 1 1 Propulsion 3 | 1 3 4 Utility 1 | . 1 3 Weapon 4 | . 4 4 Tool/Special . | . . . Unused Backups 14 | . 4 10 Power 1 | . . 1 Propulsion 8 | . 4 4 Utility 3 | . . 3 Weapon 1 | . . 1 Tool/Special 1 | . . 1 Average Slot Usage (%) 95 | . 95 94 Engine 12 | . 12 11 Leg 27 | . 28 25 Device 3 | . 2 14 Storage 14 | . 14 14 Protection 7 | . 7 . Ballistic Gun 14 | . 14 14 Launcher 13 | . 13 14 Peak Build Rating 8 | 5 8 8 Average Rating 7 | 3 7 7 On Entrance 4 | . 5 8 Avg Prop Armor Cover (%) . | . . . Naked Turns . | . . . Heaviest Build 93 | 9 93 31 Greatest Support 20 | 20 20 20 Greatest Overweight (x) 4 | 1 4 2 Average Overweight (x) 1 | . 1 1 Largest Inventory Capacity 25 | 8 25 15 Average Capacity 17 | 7 18 15 Most Carried 15 | 7 15 13 Average Carried 10 | 4 10 12 Final Capacity 15 | 8 15 15 Final Carried 13 | 7 13 11 Class Distribution -------------------- 100% | Mutant Dominant Class ---------------- Mutant | -10/Materials Mutant | -10/Mines Resources | -11 -10 -10 ----------- Run | Yrd Mat Min Matter Collected 862 | 228 612 22 Remotely . | . . . Salvage Created 425 | . 403 22 Parts 41 | . 36 5 Haulers Intercepted 1 | . 1 . Recyclers Shooed . | . . . Parts Field Recycled . | . . . Retrieved Matter . | . . . Parts Self-Destructed . | . . . Prevented . | . . . Parts Restored . | . . . Kills | -11 -10 -10 ------- Run | Yrd Mat Min Combat Hostiles Destroyed 18 | . 13 5 Guns 4 | . 4 . AOE 14 | . 9 5 Classes Destroyed 6 | . 5 1 Worker 3 | . 3 . Hauler 1 | . 1 . Watcher 3 | . 3 . Swarmer 5 | . 2 3 Grunt 11 | . 11 . Assembled 2 | . . 2 Best Kill Streak 5 | . 5 3 Combat Bots Only 4 | . 4 3 Max Kills in Single Turn 3 | . 3 3 Gunslinging . | . . . Exploded 3 | . 3 3 Melee . | . . . Uniques/NPCs Destroyed . | . . . Combat | -11 -10 -10 -------- Run | Yrd Mat Min Hostile Shots Fired 68 | . 52 16 Missed 22 | . 18 4 Hits 46 | . 34 12 Projectile 46 | . 34 12 AOE 8 | . . 8 Damage Taken 860 | . 411 449 Core 267 | . 88 179 Absorbed by Shields . | . . . Core Remaining (%) 100 | 100 . . Volleys Fired 40 | . 35 5 Largest 2 | . 2 2 Hottest 50 | . 50 50 Shots Fired 66 | . 57 9 Gun 39 | . 35 4 Cannon . | . . . Launcher 27 | . 22 5 Special . | . . . Kinetic 39 | . 35 4 Thermal . | . . . Explosive 27 | . 22 5 Electromagnetic . | . . . Robot Hit Streak 6 | . 6 3 Robot Miss Streak 3 | . 3 2 Penetration Max . | . . . Secondary Targets . | . . . Shots Hit Robots 38 | . 34 4 Core Hits 40 | . 31 9 Critical Kills . | . . . Critical Parts Destroyed . | . . . Critical Strikes . | . . . Melee Attacks . | . . . Impact . | . . . Slashing . | . . . Piercing . | . . . Sneak Attacks . | . . . Combat Hostiles . | . . . Follow-up Attacks . | . . . Damage Inflicted 1651 | . 1290 361 Guns 301 | . 276 25 Cannons . | . . . Explosions 1350 | . 1014 336 Melee . | . . . Ramming . | . . . Kinetic 301 | . 276 25 Thermal . | . . . Explosive 1350 | . 1014 336 Electromagnetic . | . . . Impact . | . . . Slashing . | . . . Piercing . | . . . Highest Corruption . | . . . Average Corruption . | . . . Corruption Purged . | . . . Corruption Blocked . | . . . Overload Shots . | . . . Overflow Damage 5 | . 5 . Projectiles . | . . . Explosions 5 | . 5 . Melee . | . . . Knockbacks . | . . . Impact . | . . . Kinetic . | . . . Secondary . | . . . Self-Inflicted Damage 100 | . 54 46 Shots 7 | . 4 3 Rammed . | . . . Targets Rammed . | . . . Kicked . | . . . Crushed . | . . . Highest Temperature 30 | . 30 . Average Temperature 13 | . 13 . Received Heat Transfer 153 | . 153 . Siege Activations . | . . . Martial Activations . | . . . Shielding Activations . | . . . Robots Disrupted . | . . . Combat Hostiles . | . . . Robots Corrupted . | . . . Combat Hostiles . | . . . Parts Fried . | . . . Impact Corruptions . | . . . Robots Melted . | . . . Combat Hostiles . | . . . Parts Melted . | . . . Heat Transferred . | . . . Parts Sabotaged . | . . . Parts Stolen . | . . . Parts Stripped . | . . . Power Chain Reactions . | . . . Alert | -11 -10 -10 ------- Run | Yrd Mat Min Maximum Alert Level . | . . . Low Security (%) 100 | 100 100 100 Level 1 . | . . . Level 2 . | . . . Level 3 . | . . . Level 4 . | . . . Level 5 . | . . . High Security . | . . . Max Security . | . . . Peak Influence 190 | . 190 128 Initial 42 | . . 42 Average 76 | . 78 109 Influence Increases 599 | . 502 97 Destroy 0b10 Robot/C 320 | . 260 60 Destroy 0b10 Robot/NC 35 | . 35 . Destroy Leader 78 | . 68 10 Successful Hack 7 | . 7 . Disable Machine 45 | . 45 . Destroy Structure 114 | . 87 27 Influence Decreases 520 | . 392 128 Entered New Map 68 | . . 68 Time Decay 402 | . 382 20 Lost Part 50 | . 10 40 Squads Dispatched 4 | . 4 . Investigation 2 | . 2 . Extermination . | . . . Reinforcement 2 | . 2 . Assault . | . . . Garrison . | . . . Intercept . | . . . Searches Triggered . | . . . Construction Impeded . | . . . Haulers Reinforced . | . . . Active Scanning Responses . | . . . Cargo Convoy Interrupts . | . . . Stealth | -11 -10 -10 --------- Run | Yrd Mat Min Distress Signals . | . . . Communications Jammed . | . . . Distress Signals . | . . . Times Spotted 30 | . 19 11 Peak Tracking Total 16 | . 3 16 Tactical Retreats . | . . . Traps | -11 -10 -10 ------- Run | Yrd Mat Min Traps Triggered 2 | . 2 . Indirectly . | . . . Trap Hack Attempts . | . . . Triggered . | . . . Disarmed . | . . . Reprogrammed . | . . . Reused . | . . . Traps Extracted . | . . . Installed . | . . . Triggered . | . . . Machines | -11 -10 -10 ---------- Run | Yrd Mat Min Machines Disabled 4 | . 4 . Max in Single Turn 1 | . 1 . Machines Repaired . | . . . Machines Dismantled . | . . . Machines Sabotaged . | . . . Overloaded Fab Kills . | . . . Hacking | -11 -10 -10 --------- Run | Yrd Mat Min Machines Accessed 2 | . 2 . Terminals 2 | . 2 . Fabricators . | . . . Repair Stations . | . . . Recycling Units . | . . . Scanalyzers . | . . . Garrison Access . | . . . Total Hacks 3 | . 3 . Successful 2 | . 2 . Failed 1 | . 1 . Catastrophic . | . . . Database Lockouts . | . . . Manual . | . . . Terminals 3 | . 3 . Fabricators . | . . . Repair Stations . | . . . Recycling Units . | . . . Scanalyzers . | . . . Garrison Access . | . . . Terminal Hacks 2 | . 2 . Record 1 | . 1 . Patrol Status 1 | . 1 . Fabricator Hacks . | . . . Repair Station Hacks . | . . . Recycling Unit Hacks . | . . . Scanalyzer . | . . . Garrison Access Hacks . | . . . Unauthorized Hacks . | . . . Terminals . | . . . Fabricators . | . . . Repair Stations . | . . . Recycling Units . | . . . Scanalyzers . | . . . Garrison Access . | . . . Data Cores Recovered . | . . . Used . | . . . Hacking Detections 1 | . 1 . Full Trace Events . | . . . Feedback Events . | . . . Feedback Blocked . | . . . Robot Schematics Acquired . | . . . Robots Built . | . . . Authchips . | . . . Time . | . . . Total Robot Build Rating . | . . . Part Schematics Acquired . | . . . Parts Built . | . . . Authchips . | . . . Time . | . . . Total Part Build Rating . | . . . Part Studies Acquired . | . . . Parts Repaired . | . . . Time . | . . . Parts Recycled . | . . . Recycled Matter . | . . . Retrieved Matter . | . . . Retrieved Components . | . . . Parts Scanalyzed . | . . . Part Schematics Acquired . | . . . Parts Damaged . | . . . Bothacking | -11 -10 -10 ------------ Run | Yrd Mat Min Used RIF Installer . | . . . Robots Hacked . | . . . Non-combat . | . . . Combat . | . . . Robot Hacks Applied . | . . . Relay Couplers Released . | . . . Fabnet Peak Effective % . | . . . Robots Rewired . | . . . Allies Hacked . | . . . Hacks Repelled . | . . . Allies | -11 -10 -10 -------- Run | Yrd Mat Min Total Allies . | . . . Largest Group . | . . . Highest-Rated Group . | . . . Highest-Rated Ally . | . . . Total Orders . | . . . Ally Attacks . | . . . Total Damage . | . . . Kills . | . . . Allies Corrupted . | . . . Allies Melted . | . . . Intel | -11 -10 -10 ------- Run | Yrd Mat Min Active Infowar (turns) 281 | . 235 46 Terrain 281 | . 235 46 Robot Analysis Total . | . . . Derelict Logs Recovered . | . . . Drone Launches . | . . . Drone Recoveries . | . . . Exploration | -11 -10 -10 ------------- Run | Yrd Mat Min Turns Passed 1337 | 63 1228 46 Spaces Moved 549 | 42 492 15 Core 11 | 11 . . Treads . | . . . Legs 538 | 31 492 15 Wheels . | . . . Hover . | . . . Flight . | . . . Fastest Speed 50 | 50 120 190 Average Speed 214 | 111 223 199 Slowest Speed 400 | 120 400 260 Overloaded Moves . | . . . Propulsion Burnouts . | . . . Robots Hopped . | . . . Potential Cave-ins . | . . . Cave-ins Triggered . | . . . Exploration Rate (%) 31 | 3 85 7 Regions Visited 2 Branch Regions 1 Pre-discovered Areas . | . . . Known Exits Taken . | . . . Unknown Exits Taken 2 | 1 1 . Scrap Searched . | . . . Spaces Dug . | . . . Terrain Destroyed 141 | . 111 30 Melee . | . . . Projectile . | . . . AOE 141 | . 111 30 Terrain Rammed . | . . . Walls Destroyed . | . . . Machines Disabled . | . . . Actions | -11 -10 -10 --------- Run | Yrd Mat Min Total 644 | 58 564 22 Wait 2 | . 2 . Move 547 | 41 491 15 Hop . | . . . Pick Up 30 | 12 18 . Fast Attach . | . . . Attach 10 | 5 3 2 Detach . | . . . Swap 6 | . 6 . Drop 9 | . 9 . Fire 40 | . 35 5 Melee . | . . . Ram . | . . . Kick . | . . . Crush . | . . . Escape Stasis . | . . . Rewire . | . . . Trap . | . . . Miscellaneous . | . . . Route ------- -11/Scrapyard -10/Materials (discovered 5 exits: [*Mat x3] / [*Min x2]) -10/Mines History --------- Turn | Location | Event 15 | -11/Scrapyard | Discovered new exit (range 15) 64 | -11/Scrapyard | Entered Materials 206 | -10/Materials | Discovered new exit (range 4) 314 | -10/Materials | Build established: Mutant 392 | -10/Materials | Discovered new exit (range 16) 758 | -10/Materials | Discovered new exit (range 11) 854 | -10/Materials | Discovered new exit (range 14) 1239 | -10/Materials | Discovered new exit (range 7) 1292 | -10/Materials | Entered Mines 1312 | -10/Mines | Assembled infested the area 1329 | -10/Mines | Core integrity fell below 50% 1334 | -10/Mines | Core integrity fell below 20% 1338 | -10/Mines | Destroyed by D-53 Grenadier with Mini Grenade Launcher Last Messages --------------- R-06 Scavenger collects Lgt. Assault Rifle. Destroyed Asb. Hover Unit. C-45 Heavy ARC bursts open, deploying its payload. D-53 Grenadier unfolds itself. as-00490 destroyed. as-02564 destroyed. as-91361 destroyed. HV Slug penetrates as-36572. as-36572 destroyed. Ion Engine destroyed. Aluminum Leg destroyed. as-68116 powers down. as-91463 powers down. as-79889 powers down. Assault Rifle destroyed. Grenade Launcher destroyed. The unstable cave ceiling collapses. as-91463 destroyed. The unstable cave ceiling collapses. Map ----- +----------------------------------------------------+ | ???????????????????????????????????????????? | | ???????????????????????????????????????????? | | ???????????????????????????????????????????? | | ???????????????????????????????????????????? | | ???????????????????????????????????????????? | | ???????????????????????????????????????????? | | ???????????????????????????????????????????? | | ???????????????????????????????????????????? | | ???????????????????????????????????????????? | | ???????????????????????????????????????????? | | ???????????????????????????????????????????? | | ??????????????????????#????#????##?????????? | | ????????????????????? #????????gg##????????? | | ??????????????????? ? #??????? #????????? | | ????????????????????? ##?????? #??????? | | ????????????????????# ?????? ??????? | | ?????????????#????## ?????? # #?????? | | ?????????????????## ?????? = ?%????? | | ?????????????????# ?###?## = # ?????? | | ????????????????## #?# # # ???????? | | ??????????????### ### d #?????????? | | ??????????????# # #?#?????????? | | ?????????????## d #???????????? | | ?????????#???# % #???????????? | | ????????????## ## #???????????? | | ??????????### * ## @ #?????#??????? | | ???????????# #### # #????????????? | | ?????????#?# #??# ##????????????? | | ???????????## ##??## ##?????????????? | | ????????????#####????## # #??????#???????? | | ??????????????????????##?####???#?#????????? | | ???????????????????????????????????????????? | | ???????????????????????????????????????????? | | ???????????????????????????????????????????? | | | | | | | | | | | | | | | | | | | | | | | | | | | | | | | | | +----------------------------------------------------+ Best States ------------- Heat Dissipation 25 Energy Generation 10 Energy Capacity 250 Matter Stores 300 Matter Capacity 300 Sight Range 16 Terrain Scan Range 14 Terrain Scan Density 10 Armor Coverage 150 Evasion (%) 55 Item Schematics ----------------- None Robot Schematics ------------------ None Fabricated ------------ Nothing Repaired ---------- Nothing Studied --------- None Alien Tech Used ----------------- None Achievements -------------- Loot Pinata Challenges ------------ None Game ------ Seed ReactiveMagneticNukerbomber Manual? 0 Play Time 00:12:23 Cumulative 1.7 hours Start 2025.10.22 @ 22:10:12 End 2025.10.22 @ 22:21:25 Sessions 1 Manual Loads 0 Difficulty Rogue Special Mode None Game No. 6 Rogue 6 Adventurer 0 Explorer 0 Win Type - Total 0 Types 0/0/0/0/0/0/0/0/0/0 Lore% 1 Gallery% 3 Achievement% 3 Wizard Run 0 Options --------- Layout 1 ASCII 0 Keyboard 0 Movement Mouse Keybinds 0 Fullscreen 1 Font 24/Smallcaps Map View 50x35 Zoom Use 0% Tactical HUD 0 Map Filters NONE Filters NONE Steam 1 RUN: 9881eeeb-f511-4f9c-8e5d-256ba10e6669